fUST/lending_fUST_20240922
["ID","MTS","AMOUNT","RATE_DAILY","PERIOD"]
[338852754,1726943461264,-472.96,0.00016278,2]
[338852755,1726943461273,-500.0,0.00016278,2]
[338852756,1726943461282,-200.0,0.00016278,2]
[338852757,1726943461292,-151.0,0.00016278,2]
[338852758,1726943461302,-151.0,0.00016278,2]
[338852759,1726943461313,-151.0,0.00016278,2]
[338852760,1726943461323,-151.0,0.00016278,2]
[338852761,1726943461334,-151.0,0.00016278,2]
[338852762,1726943461343,-153.81559,0.00016278,2]
[338852763,1726943461352,-693.2,0.00016278,2]
[338852764,1726943461362,-500.0,0.00016279,2]
[338852765,1726943461372,-500.0,0.00016279,2]
[338852766,1726943461381,-398.85,0.00016279,2]
[338852767,1726943461390,-1081.9,0.00016279,2]
[338852768,1726943461400,-528.72,0.00016279,2]
[338852769,1726943461409,-500.0,0.00016279,2]
[338852770,1726943461419,-156.44103273,0.00016279,2]
[338852771,1726943461429,-500.0,0.00016279,2]
[338852772,1726943461439,-960.55,0.00016279,2]
[338852773,1726943461448,-546.56980272,0.00016279,2]
[338852774,1726943461458,-151.0,0.0001628,2]
[338852775,1726943461467,-151.0,0.0001628,2]
[338852776,1726943461476,-151.0,0.0001628,2]
[338852777,1726943461486,-151.0,0.0001628,2]
[338852778,1726943461495,-151.0,0.0001628,2]
[338852779,1726943461505,-151.0,0.0001628,2]
[338852780,1726943461514,-151.0,0.0001628,2]
[338852781,1726943461523,-2211.92803,0.0001628,2]
[338852782,1726943461533,-2211.92803,0.0001628,2]
[338852783,1726943461542,-151.0,0.0001628,2]
[338852784,1726943461552,-151.0,0.0001628,2]
[338852785,1726943461562,-3000.0,0.0001628,2]
[338852786,1726943461571,-231.575856,0.0001628,2]
[338852787,1726943461581,-231.575856,0.0001628,2]
[338852788,1726943461590,-866.891261,0.0001628,2]
[338852789,1726943461600,-866.891261,0.0001628,2]
[338852790,1726943461609,-216.637094,0.00016289,2]
[338852791,1726943461619,-216.637094,0.00016289,2]
[338852792,1726943461629,-151.0,0.00016289,2]
[338852793,1726943461638,-151.0,0.00016289,2]
[338852794,1726943461649,-2109.866631,0.00016289,2]
[338852795,1726943461658,-2109.866631,0.00016289,2]
[338852796,1726943461669,-151.0,0.00016289,2]
[338852797,1726943461678,-511.74,0.00016289,2]
[338852798,1726943461688,-500.0,0.00016289,2]
[338852799,1726943461697,-806.537498,0.00016289,2]
[338852800,1726943461707,-806.537498,0.00016289,2]
[338852801,1726943461717,-151.0,0.00016289,2]
[338852802,1726943461726,-151.0,0.00016289,2]
[338852803,1726943461736,-151.0,0.00016289,2]
[338852804,1726943461746,-151.0,0.00016289,2]
[338852805,1726943461756,-267.069111,0.00016289,2]
[338852806,1726943461765,-267.069111,0.00016289,2]
[338852807,1726943461775,-409.025697,0.00016289,2]
[338852808,1726943461784,-409.025697,0.00016289,2]
[338852809,1726943461794,-523.132601,0.00016289,2]
[338852810,1726943461804,-523.132601,0.00016289,2]
[338852811,1726943461813,-3000.0,0.0001629,2]
[338852812,1726943461822,-151.0,0.000163,2]
[338852813,1726943461831,-151.0,0.000163,2]
[338852814,1726943461841,-151.0,0.000163,2]
[338852815,1726943461850,-151.0,0.000163,2]
[338852816,1726943461859,-151.0,0.000163,2]
[338852817,1726943461868,-151.0,0.000163,2]
[338852818,1726943461878,-151.0,0.000163,2]
[338852819,1726943461887,-3000.0,0.000163,2]
[338852820,1726943461898,-151.0,0.000163,2]
[338852821,1726943461907,-2114.04343,0.000163,2]
[338852822,1726943461916,-2114.04343,0.000163,2]
[338852823,1726943461926,-151.0,0.000163,2]
[338852824,1726943461935,-493.731065,0.000163,2]
[338852825,1726943461945,-493.731065,0.000163,2]
[338852826,1726943461954,-231.711062,0.000163,2]
[338852827,1726943461963,-231.711062,0.000163,2]
[338852828,1726943461973,-625.679614,0.000163,2]
[338852829,1726943461982,-625.679614,0.000163,2]
[338852830,1726943461991,-3000.0,0.0001631,2]
[338852831,1726943462001,-229.542574,0.00016315,2]
[338852832,1726943462011,-229.542574,0.00016315,2]
[338852833,1726943462020,-3000.0,0.0001632,2]
[338852834,1726943462030,-151.0,0.00016327,2]
[338852835,1726943462039,-151.0,0.00016327,2]
[338852836,1726943462048,-151.0,0.00016327,2]
[338852837,1726943462057,-151.0,0.00016327,2]
[338852838,1726943462066,-2211.92803,0.00016327,2]
[338852839,1726943462075,-2211.92803,0.00016327,2]
[338852840,1726943462085,-369.677712,0.00016327,2]
[338852841,1726943462094,-369.677712,0.00016327,2]
[338852842,1726943462104,-763.627538,0.00016327,2]
[338852843,1726943462113,-763.627538,0.00016327,2]
[338852844,1726943462122,-151.0,0.00016327,2]
[338852845,1726943462132,-367.536262,0.00016327,2]
[338852846,1726943462141,-367.536262,0.00016327,2]
[338852847,1726943462151,-151.0,0.00016327,2]
[338852848,1726943462160,-939.602412,0.00016327,2]
[338852849,1726943462169,-939.602412,0.00016327,2]
[338852850,1726943462178,-1930.634112,0.00016327,2]
[338852851,1726943462187,-220.874565,0.00016327,2]
[338852852,1726943462196,-1930.634112,0.00016327,2]
[338852853,1726943462205,-220.874565,0.00016327,2]
[338852854,1726943462214,-348.00348,0.00016327,2]
[338852855,1726943462224,-348.00348,0.00016327,2]
[338852856,1726943462234,-216.810795,0.00016327,2]
[338852857,1726943462244,-151.0,0.00016327,2]
[338852858,1726943462255,-151.0,0.00016327,2]
[338852859,1726943462265,-223.986723,0.00016327,2]
[338852860,1726943462275,-223.986723,0.00016327,2]
[338852861,1726943462284,-446.48229,0.00016327,2]
[338852862,1726943462293,-446.48229,0.00016327,2]
[338852863,1726943462303,-4064.152447,0.00016327,2]
[338852864,1726943462313,-4064.152447,0.00016327,2]
[338852865,1726943462323,-151.0,0.00016327,2]
[338852866,1726943462332,-1216.0,0.00016327,2]
[338852867,1726943462342,-3000.0,0.0001633,2]
[338852868,1726943462351,-3000.0,0.0001634,2]
[338852869,1726943462360,-1000.0,0.00016342,2]
[338852870,1726943462369,-1000.0,0.00016342,2]
[338852871,1726943462378,-501.05784197,0.00016342,2]
[338852872,1726943462388,-1000.0,0.00016342,2]
[338852873,1726943462400,-1000.0,0.00016342,2]
[338852874,1726943462411,-1000.0,0.00016342,2]
[338852875,1726943462422,-500.68393457,0.00016342,2]
[338852876,1726943462431,-1000.31559626,0.00016342,2]
[338852877,1726943462442,-1000.0,0.00016342,2]
[338852878,1726943462453,-1000.0,0.00016342,2]
[338852879,1726943462462,-500.52186912,0.00016342,2]
[338852880,1726943462471,-325.26622476,0.00016342,2]
[338852881,1726943462482,-803.89639885,0.00016342,2]
[338852882,1726943462493,-1000.0,0.00016342,2]
[338852883,1726943462504,-1000.0,0.00016342,2]
[338852884,1726943462514,-500.38095106,0.00016342,2]
[338852885,1726943462523,-376.66092736,0.00016342,2]
[338852886,1726943462532,-1000.0,0.00016342,2]
[338852887,1726943462542,-1000.0,0.00016342,2]
[338852888,1726943462552,-1000.24901749,0.00016342,2]
[338852889,1726943462561,-500.32795844,0.00016342,2]
[338852890,1726943462571,-1000.0,0.00016342,2]
[338852891,1726943462580,-1000.0,0.00016342,2]
[338852892,1726943462590,-1000.0,0.00016342,2]
[338852893,1726943462600,-3000.0,0.0001635,2]
[338852894,1726943462609,-3000.0,0.0001636,2]
[338852895,1726943462619,-3000.0,0.0001637,2]
[338852896,1726943462630,-3000.0,0.0001638,2]
[338852897,1726943462642,-3000.0,0.0001639,2]
[338852898,1726943462652,-3000.0,0.000164,2]
[338852899,1726943462662,-3000.0,0.0001641,2]
[338852900,1726943462671,-3000.0,0.0001642,2]
[338852901,1726943462681,-4624.934204,0.0001643,2]
[338852902,1726943462691,-200.0,0.00016438,2]
[338852903,1726943462702,-200.0,0.00016438,2]
[338852904,1726943462712,-200.0,0.00016438,2]
[338852905,1726943462723,-200.0,0.00016438,2]
[338852906,1726943462734,-200.0,0.00016438,2]
[338852907,1726943462744,-200.0,0.00016438,2]
[338852908,1726943462753,-200.0,0.00016438,2]
[338852909,1726943462762,-200.0,0.00016438,2]
[338852910,1726943462771,-200.0,0.00016438,2]
[338852911,1726943462780,-796.7,0.00016438,2]
[338852912,1726943462789,-295.550393,0.00016438,2]
[338852913,1726943462799,-295.550393,0.00016438,2]
[338852914,1726943462808,-295.550393,0.00016438,2]
[338852915,1726943462817,-295.550393,0.00016438,2]
[338852916,1726943462826,-295.550393,0.00016438,2]
[338852917,1726943462835,-295.550393,0.00016438,2]
[338852918,1726943462844,-295.550393,0.00016438,2]
[338852919,1726943462854,-295.550393,0.00016438,2]
[338852920,1726943462863,-295.550393,0.00016438,2]
[338852921,1726943462872,-295.550393,0.00016438,2]
[338852922,1726943462881,-151.0,0.00016438,2]
[338852923,1726943462890,-151.0,0.00016438,2]
[338852924,1726943462901,-151.0,0.00016438,2]
[338852925,1726943462911,-151.0,0.00016438,2]
[338852926,1726943462920,-151.0,0.00016438,2]
[338852927,1726943462929,-151.0,0.00016438,2]
[338852928,1726943462939,-151.0,0.00016438,2]
[338852929,1726943462948,-151.0,0.00016438,2]
[338852930,1726943462957,-151.0,0.00016438,2]
[338852931,1726943462966,-151.0,0.00016438,2]
[338852932,1726943462975,-151.0,0.00016438,2]
[338852933,1726943462984,-151.0,0.00016438,2]
[338852934,1726943462994,-151.0,0.00016438,2]
[338852935,1726943463003,-151.0,0.00016438,2]
[338852936,1726943463013,-151.0,0.00016438,2]
[338852937,1726943463134,-172.975159,0.00016438,2]
[338852938,1726943463147,-1000.0,0.00016473,2]
[338852939,1726943463160,-1000.0,0.00016473,2]
[338852940,1726943463170,-151.0,0.00016489,2]
[338852941,1726943463179,-153.0,0.00016516,2]
[338852942,1726943463188,-169.618,0.00016532,2]
[338852943,1726943463197,-150.154,0.00016532,2]
[338852944,1726943463206,-152.725,0.00016532,2]
[338852945,1726943463216,-150.0,0.00016532,2]
[338852946,1726943463225,-150.0,0.00016532,2]
[338852947,1726943463235,-583.63,0.0001654,2]
[338852948,1726943463246,-798.55,0.0001654,2]
[338852949,1726943463255,-420.8,0.0001654,2]
[338852950,1726943463265,-500.0,0.0001654,2]
[338852951,1726943463275,-546.39,0.0001654,2]
[338852952,1726943463284,-652.39,0.0001654,2]
[338852953,1726943463293,-25013.61,0.0001654,2]
[338852954,1726943463303,-500.0,0.0001654,2]
[338852955,1726943463313,-2359.23,0.0001654,2]
[338852956,1726943463324,-239.96,0.0001654,2]
[338852957,1726943463333,-500.0,0.00016549,2]
[338852958,1726943463343,-924.28,0.00016549,2]
[338852959,1726943463353,-500.0,0.00016549,2]
[338852960,1726943463362,-612.82,0.00016549,2]
[338852961,1726943463372,-1462.21,0.00016549,2]
[338852962,1726943463383,-481.38,0.00016549,2]
[338852963,1726943463393,-9178.76,0.00016549,2]
[338852964,1726943463403,-500.0,0.0001655,2]
[338852965,1726943463414,-873.96,0.0001655,2]
[338852966,1726943463424,-499.38,0.0001655,2]
[338852967,1726943463434,-500.0,0.0001655,2]
[338852968,1726943463444,-662.54,0.0001655,2]
[338852969,1726943463454,-1332.43,0.0001655,2]
[338852970,1726943463463,-500.0,0.0001655,2]
[338852971,1726943463474,-1059.04,0.0001655,2]
[338852972,1726943463484,-678.09,0.0001655,2]
[338852973,1726943463494,-500.0,0.0001655,2]
[338852974,1726943463503,-353.24,0.0001655,2]
[338852975,1726943463514,-500.0,0.0001655,2]
[338852976,1726943463524,-500.0,0.0001655,2]
[338852977,1726943463534,-643.77,0.00016551,2]
[338852978,1726943463543,-500.0,0.00016551,2]
[338852979,1726943463553,-200.0,0.00016551,2]
[338852980,1726943463562,-500.0,0.00016551,2]
[338852981,1726943463571,-692.67,0.00016551,2]
[338852982,1726943463580,-500.0,0.00016551,2]
[338852983,1726943463590,-500.0,0.00016551,2]
[338852984,1726943463600,-151.0,0.00016551,2]
[338852985,1726943463610,-500.0,0.00016551,2]
[338852986,1726943463620,-151.0,0.00016551,2]
[338852987,1726943463629,-806.537498,0.00016551,2]
[338852988,1726943463639,-806.537498,0.00016551,2]
[338852989,1726943463649,-151.0,0.00016551,2]
[338852990,1726943463659,-151.0,0.00016551,2]
[338852991,1726943463668,-151.0,0.00016551,2]
[338852992,1726943463678,-500.0,0.00016551,2]
[338852993,1726943463687,-500.0,0.00016551,2]
[338852994,1726943463697,-500.0,0.00016551,2]
[338852995,1726943463706,-611.18984245,0.00016551,2]
[338852996,1726943463716,-389.31955495,0.00016551,2]
[338852997,1726943463726,-231.575856,0.00016551,2]
[338852998,1726943463735,-231.575856,0.00016551,2]
[338852999,1726943463745,-866.891261,0.00016551,2]
[338853000,1726943463755,-866.891269,0.00016551,2]
[338853001,1726943463764,-500.0,0.00016551,2]
[338853002,1726943463775,-500.0,0.00016551,2]
[338853003,1726943463785,-602.5,0.00016551,2]
[338853004,1726943463794,-682.43,0.00016551,2]
[338853005,1726943463804,-500.0,0.00016551,2]
[338853006,1726943463814,-500.0,0.00016551,2]
[338853007,1726943463824,-705.66,0.00016551,2]
[338853008,1726943463833,-528.6808732,0.00016551,2]
[338853009,1726943463843,-500.0,0.00016551,2]
[338853010,1726943463852,-573.4,0.00016551,2]
[338853011,1726943463862,-151.0,0.00016552,2]
[338853012,1726943463871,-500.0,0.00016552,2]
[338853013,1726943463881,-295.550393,0.00016552,2]
[338853014,1726943463891,-295.550393,0.00016552,2]
[338853015,1726943463902,-500.0,0.00016552,2]
[338853016,1726943463912,-500.0,0.00016552,2]
[338853017,1726943463921,-151.0,0.00016552,2]
[338853018,1726943463931,-151.0,0.00016552,2]
[338853019,1726943463940,-314.51393293,0.00016552,2]
[338853020,1726943463950,-693.2,0.00016552,2]
[338853021,1726943463960,-151.0,0.00016552,2]
[338853022,1726943463970,-267.069111,0.00016552,2]
[338853023,1726943463979,-267.069107,0.00016552,2]
[338853024,1726943463989,-409.025697,0.00016552,2]
[338853025,1726943463999,-409.02568812,0.00016552,2]
[338853026,1726943464009,-523.132601,0.00016552,2]
[338853027,1726943464019,-523.132608,0.00016552,2]
[338853028,1726943464028,-500.0,0.00016553,2]
[338853029,1726943464039,-500.0,0.00016553,2]
[338853030,1726943464048,-1081.9,0.00016553,2]
[338853031,1726943464059,-528.72,0.00016553,2]
[338853032,1726943464068,-500.0,0.00016553,2]
[338853033,1726943464077,-960.55,0.00016553,2]
[338853034,1726943464086,-151.0,0.00016554,2]
[338853035,1726943464095,-169.816527,0.00016554,2]
[338853036,1726943464105,-511.74,0.00016563,2]
[338853037,1726943464114,-500.0,0.00016563,2]
[338853038,1726943464123,-153.278653,0.00016563,2]
[338853039,1726943464135,-151.0,0.00016563,2]
[338853040,1726943464154,-151.0,0.00016563,2]
[338853041,1726943464170,-151.0,0.00016563,2]
[338853042,1726943464185,-151.0,0.00016563,2]
[338853043,1726943464201,-2114.04343,0.00016563,2]
[338853044,1726943464216,-2114.04343,0.00016563,2]
[338853045,1726943464233,-151.0,0.00016563,2]
[338853046,1726943464252,-493.731065,0.00016563,2]
[338853047,1726943464266,-493.731065,0.00016563,2]
[338853048,1726943464280,-231.711062,0.00016563,2]
[338853049,1726943464297,-231.711062,0.00016563,2]
[338853050,1726943464310,-625.679614,0.00016563,2]
[338853051,1726943464324,-625.679614,0.00016563,2]
[338853052,1726943464337,-209.36281,0.00016609,2]
[338853053,1726943464353,-205.978112,0.00016609,2]
[338853054,1726943464369,-334.980496,0.00016609,2]
[338853055,1726943464386,-257.472641,0.00016609,2]
[338853056,1726943464398,-912.675743,0.00016609,2]
[338853057,1726943464409,-169.231416,0.00016609,2]
[338853058,1726943464424,-1234.629965,0.00016609,2]
[338853059,1726943464439,-174.890975,0.00016609,2]
[338853060,1726943464452,-186.164431,0.00016609,2]
[338853061,1726943464467,-152.579256,0.00016609,2]
[338853062,1726943464479,-174.370787,0.00016609,2]
[338853063,1726943464490,-150.0,0.00016644,2]
[338853064,1726943464503,-3200.0,0.00016644,2]
[338853065,1726943464515,-300.0,0.00016644,2]
[338853066,1726943464528,-1215.4548922,0.000167,2]
[338853067,1726943464541,-620.41258417,0.00016736,2]
[338853068,1726943464554,-796.7,0.00016762,2]
[338853069,1726943464566,-153.0,0.00016795,2]
[338853070,1726943464579,-153.0,0.00016795,2]
[338853071,1726943464592,-153.0,0.00016795,2]
[338853072,1726943464605,-153.0,0.00016795,2]
[338853073,1726943464618,-153.0,0.00016795,2]
[338853074,1726943464631,-308.5398537,0.00016795,2]
[338853075,1726943464646,-300.0,0.000168,6]
[338853076,1726943464659,-583.63,0.00016814,2]
[338853077,1726943464672,-798.55,0.00016814,2]
[338853078,1726943464685,-229.23,0.00016814,2]
[338853079,1726943464698,-546.39,0.00016814,2]
[338853080,1726943464711,-652.39,0.00016814,2]
[338853081,1726943464724,-25013.61,0.00016814,2]
[338853082,1726943464736,-500.0,0.00016814,2]
[338853083,1726943464749,-2359.23,0.00016814,2]
[338853084,1726943464762,-205.978112,0.00016817,2]
[338853085,1726943464774,-334.980496,0.00016817,2]
[338853086,1726943464786,-912.675743,0.00016817,2]
[338853087,1726943464798,-1234.629965,0.00016817,2]
[338853088,1726943464811,-500.0,0.00016823,2]
[338853089,1726943464824,-924.28,0.00016823,2]
[338853090,1726943464837,-500.0,0.00016823,2]
[338853091,1726943464850,-612.82,0.00016823,2]
[338853092,1726943464863,-1462.21,0.00016823,2]
[338853093,1726943464876,-9178.76,0.00016823,2]
[338853094,1726943464889,-500.0,0.00016824,2]
[338853095,1726943464901,-873.96,0.00016824,2]
[338853096,1726943464916,-500.0,0.00016824,2]
[338853097,1726943464929,-662.54,0.00016824,2]
[338853098,1726943464942,-1332.43,0.00016824,2]
[338853099,1726943464955,-500.0,0.00016824,2]
[338853100,1726943464969,-1059.04,0.00016824,2]
[338853101,1726943464979,-678.09,0.00016824,2]
[338853102,1726943464988,-500.0,0.00016824,2]
[338853103,1726943464998,-500.0,0.00016824,2]
[338853104,1726943465008,-500.0,0.00016824,2]
[338853105,1726943465019,-643.77,0.00016825,2]
[338853106,1726943465032,-500.0,0.00016825,2]
[338853107,1726943465043,-200.0,0.00016825,2]
[338853108,1726943465054,-500.0,0.00016825,2]
[338853109,1726943465064,-692.67,0.00016825,2]
[338853110,1726943465073,-500.0,0.00016825,2]
[338853111,1726943465083,-500.0,0.00016825,2]
[338853112,1726943465092,-500.0,0.00016825,2]
[338853113,1726943465101,-500.0,0.00016825,2]
[338853114,1726943465111,-151.0,0.00016825,2]
[338853115,1726943465120,-369.677712,0.00016825,2]
[338853116,1726943465130,-369.677704,0.00016825,2]
[338853117,1726943465140,-763.627538,0.00016825,2]
[338853118,1726943465149,-763.627542,0.00016825,2]
[338853119,1726943465158,-500.0,0.00016825,2]
[338853120,1726943465167,-367.536262,0.00016825,2]
[338853121,1726943465176,-367.53625235,0.00016825,2]
[338853122,1726943465185,-151.0,0.00016825,2]
[338853123,1726943465195,-500.0,0.00016825,2]
[338853124,1726943465204,-939.602412,0.00016825,2]
[338853125,1726943465214,-939.602409,0.00016825,2]
[338853126,1726943465223,-1930.634112,0.00016825,2]
[338853127,1726943465232,-220.874565,0.00016825,2]
[338853128,1726943465243,-1930.634107,0.00016825,2]
[338853129,1726943465253,-220.874569,0.00016825,2]
[338853130,1726943465262,-348.00348,0.00016825,2]
[338853131,1726943465271,-348.00348,0.00016825,2]
[338853132,1726943465282,-500.0,0.00016825,2]
[338853133,1726943465291,-500.0,0.00016825,2]
[338853134,1726943465301,-602.5,0.00016825,2]
[338853135,1726943465310,-682.43,0.00016825,2]
[338853136,1726943465320,-500.0,0.00016825,2]
[338853137,1726943465330,-500.0,0.00016825,2]
[338853138,1726943465340,-705.66,0.00016825,2]
[338853139,1726943465591,-500.0,0.00016825,2]
[338853140,1726943465616,-151.0,0.00016825,2]
[338853141,1726943465633,-216.637094,0.00016826,2]
[338853142,1726943465642,-216.637094,0.00016826,2]
[338853143,1726943465653,-151.0,0.00016826,2]
[338853144,1726943465662,-151.0,0.00016826,2]
[338853145,1726943465671,-2109.866631,0.00016826,2]
[338853146,1726943465681,-2109.866631,0.00016826,2]
[338853147,1726943465690,-151.0,0.00016826,2]
[338853148,1726943465699,-500.0,0.00016826,2]
[338853149,1726943465709,-295.550393,0.00016826,2]
[338853150,1726943465718,-295.550393,0.00016826,2]
[338853151,1726943465728,-500.0,0.00016826,2]
[338853152,1726943465737,-500.0,0.00016826,2]
[338853153,1726943465746,-151.0,0.00016826,2]
[338853154,1726943465755,-151.0,0.00016826,2]
[338853155,1726943465765,-693.2,0.00016826,2]
[338853156,1726943465774,-151.0,0.00016826,2]
[338853157,1726943465783,-151.0,0.00016826,2]
[338853158,1726943465792,-223.986723,0.00016826,2]
[338853159,1726943465802,-223.986731,0.00016826,2]
[338853160,1726943465811,-446.48229,0.00016826,2]
[338853161,1726943465821,-446.48229,0.00016826,2]
[338853162,1726943465830,-4064.152447,0.00016826,2]
[338853163,1726943465840,-4064.152448,0.00016826,2]
[338853164,1726943465849,-500.0,0.00016827,2]
[338853165,1726943465858,-500.0,0.00016827,2]
[338853166,1726943465868,-1081.9,0.00016827,2]
[338853167,1726943465877,-528.72,0.00016827,2]
[338853168,1726943465886,-500.0,0.00016827,2]
[338853169,1726943465895,-960.55,0.00016827,2]
[338853170,1726943465905,-151.0,0.00016828,2]
[338853171,1726943465914,-151.0,0.00016828,2]
[338853172,1726943465923,-151.0,0.00016828,2]
[338853173,1726943465933,-151.0,0.00016828,2]
[338853174,1726943465942,-151.0,0.00016828,2]
[338853175,1726943465951,-2211.92803,0.00016828,2]
[338853176,1726943465961,-2211.92803,0.00016828,2]
[338853177,1726943465970,-806.537498,0.00016828,2]
[338853178,1726943465980,-806.537498,0.00016828,2]
[338853179,1726943465989,-151.0,0.00016828,2]
[338853180,1726943465999,-151.0,0.00016828,2]
[338853181,1726943466008,-151.0,0.00016828,2]
[338853182,1726943466017,-229.542574,0.00016837,2]
[338853183,1726943466027,-229.542574,0.00016837,2]
[338853184,1726943466036,-511.74,0.00016837,2]
[338853185,1726943466045,-485.67941946,0.00016837,2]
[338853186,1726943466054,-219.0,0.0001686,2]
[338853187,1726943466063,-587.0,0.00016877,2]
[338853188,1726943466073,-5000.0,0.00017,2]
[338853189,1726943466082,-1000.0,0.00017,17]
[338853190,1726943466091,-587.0,0.00017016,2]
[338853191,1726943466101,-169.231416,0.00017024,2]
[338853192,1726943466109,-174.890975,0.00017024,2]
[338853193,1726943466118,-205.978112,0.00017024,2]
[338853194,1726943466128,-334.980496,0.00017024,2]
[338853195,1726943466137,-912.675743,0.00017024,2]
[338853196,1726943466146,-1234.629965,0.00017024,2]
[338853197,1726943466155,-796.7,0.00017086,2]
[338853198,1726943466165,-583.63,0.00017088,2]
[338853199,1726943466174,-798.55,0.00017088,2]
[338853200,1726943466184,-546.39,0.00017088,2]
[338853201,1726943466193,-652.39,0.00017088,2]
[338853202,1726943466202,-9425.9335847,0.00017088,2]
[338853203,1726943466401,-500.0,0.00014074,2]
[338853204,1726943466419,-151.0,0.00014087,2]
[338853205,1726943466428,-15587.6764153,0.00017088,2]
[338853206,1726943466437,-500.0,0.00017088,2]
[338853207,1726943466446,-2359.23,0.00017088,2]
[338853208,1726943466455,-1363.63697378,0.00017093,2]
[338853209,1726943466464,-500.0,0.00017097,2]
[338853210,1726943466473,-924.28,0.00017097,2]
[338853211,1726943466483,-500.0,0.00017097,2]
[338853212,1726943466491,-612.82,0.00017097,2]
[338853213,1726943466500,-1462.21,0.00017097,2]
[338853214,1726943466509,-9178.76,0.00017097,2]
[338853215,1726943466518,-500.0,0.00017098,2]
[338853216,1726943466528,-873.96,0.00017098,2]
[338853217,1726943466537,-500.0,0.00017098,2]
[338853218,1726943466545,-662.54,0.00017098,2]
[338853219,1726943466554,-1332.43,0.00017098,2]
[338853220,1726943466564,-500.0,0.00017098,2]
[338853221,1726943466574,-1059.04,0.00017098,2]
[338853222,1726943466584,-678.09,0.00017098,2]
[338853223,1726943466593,-500.0,0.00017098,2]
[338853224,1726943466603,-500.0,0.00017098,2]
[338853225,1726943466612,-500.0,0.00017098,2]
[338853226,1726943466622,-643.77,0.00017099,2]
[338853227,1726943466632,-315.61596561,0.00017099,2]
[338853228,1726943466642,-200.0,0.00017099,2]
[338853229,1726943466653,-500.0,0.00017099,2]
[338853230,1726943466662,-692.67,0.00017099,2]
[338853231,1726943466672,-529.28359655,0.00017099,2]
[338853232,1726943466681,-500.0,0.00017099,2]
[338853233,1726943466690,-151.0,0.00017099,2]
[338853234,1726943466699,-500.0,0.00017099,2]
[338853235,1726943466709,-151.0,0.00017099,2]
[338853236,1726943466718,-500.0,0.00017099,2]
[338853237,1726943466728,-500.0,0.00017099,2]
[338853238,1726943466737,-217.3981368,0.00017099,2]
[338853239,1726943466747,-500.0,0.00017099,2]
[338853240,1726943466756,-500.0,0.00017099,2]
[338853241,1726943466765,-602.5,0.00017099,2]
[338853242,1726943466775,-682.43,0.00017099,2]
[338853243,1726943466784,-500.0,0.00017099,2]
[338853244,1726943466794,-500.0,0.00017099,2]
[338853245,1726943466803,-705.66,0.00017099,2]
[338853246,1726943466812,-616.84828035,0.00017099,2]
[338853247,1726943466821,-500.0,0.000171,2]
[338853248,1726943466831,-500.0,0.000171,2]
[338853249,1726943466841,-693.2,0.000171,2]
[338853250,1726943466850,-500.0,0.00017101,2]
[338853251,1726943466860,-500.0,0.00017101,2]
[338853252,1726943466869,-1081.9,0.00017101,2]
[338853253,1726943466878,-528.72,0.00017101,2]